fUST/lending_fUST_20240709
["ID","MTS","AMOUNT","RATE_DAILY","PERIOD"]
[331555415,1720498243433,-704.28,0.00043835,30]
[331555416,1720498243495,-704.28,0.00043835,30]
[331555417,1720498243504,-704.28,0.00043835,30]
[331555418,1720498243514,-704.28,0.00043835,30]
[331555419,1720498243524,-704.28,0.00043835,30]
[331555420,1720498243536,-704.28,0.00043835,30]
[331555421,1720498243546,-704.28,0.00043835,30]
[331555422,1720498243555,-704.28,0.00043835,30]
[331555423,1720498243564,-704.28,0.00043835,30]
[331555424,1720498243573,-530.27490676,0.00043835,30]
[331555425,1720498243583,-704.28,0.00043835,30]
[331555426,1720498243592,-500.0,0.00043835,30]
[331555427,1720498243602,-704.28,0.00043835,30]
[331555428,1720498243611,-704.28,0.00043835,30]
[331555429,1720498243621,-704.28,0.00043835,30]
[331555430,1720498243630,-704.28,0.00043835,30]
[331555431,1720498243640,-704.28,0.00043835,30]
[331555432,1720498243649,-510.8082756,0.00043835,30]
[331555433,1720498243660,-704.28,0.00043835,30]
[331555434,1720498243669,-704.28,0.00043835,30]
[331555435,1720498243679,-522.66856255,0.00043835,30]
[331555436,1720498243688,-704.28,0.00043835,30]
[331555437,1720498243698,-704.28,0.00043835,30]
[331555438,1720498243707,-704.28,0.00043835,30]
[331555439,1720498243716,-704.28,0.00043835,30]
[331555440,1720498243725,-704.28,0.00043835,30]
[331555441,1720498243736,-500.0,0.00043835,30]
[331555442,1720498243745,-704.28,0.00043835,30]
[331555443,1720498243754,-704.32895909,0.00043835,30]
[331555444,1720498243764,-624.04,0.00043835,30]
[331555445,1720498243773,-500.0,0.00043835,30]
[331555446,1720498243786,-210.3284159,0.00043835,30]
[331555447,1720498243796,-516.33963706,0.00043835,30]
[331555448,1720498243806,-529.52084477,0.00043835,30]
[331555449,1720498243815,-1245.22,0.00043835,30]
[331555450,1720498243825,-540.37526299,0.00043835,30]
[331555451,1720498243834,-500.0,0.00043835,30]
[331555452,1720498243844,-500.0,0.00043835,30]
[331555453,1720498243853,-500.0,0.00043835,30]
[331555454,1720498243862,-500.0,0.00043835,30]
[331555455,1720498243871,-500.0,0.00043835,30]
[331555456,1720498243880,-534.12391078,0.00043835,30]
[331555457,1720498243889,-523.28976819,0.00043835,30]
[331555458,1720498243899,-500.0,0.00043835,30]
[331555459,1720498243908,-500.0,0.00043835,30]
[331555461,1720498243917,-500.0,0.00043835,30]
[331555462,1720498243926,-500.0,0.00043835,20]
[331555463,1720498243936,-502.78741176,0.00043835,20]
[331555464,1720498243946,-500.0,0.00043835,7]
[331555465,1720498243955,-500.0,0.00043835,30]
[331555466,1720498243965,-500.0,0.00043835,30]
[331555467,1720498243975,-500.0,0.00043835,30]
[331555468,1720498243984,-1119.25,0.00043835,30]
[331555469,1720498243993,-500.0,0.00043835,30]
[331555470,1720498244002,-500.0,0.00043835,30]
[331555471,1720498244011,-500.0,0.00043835,30]
[331555472,1720498244021,-316.15819429,0.00043835,30]
[331555473,1720498244033,-500.0,0.00043835,30]
[331555474,1720498244042,-1245.56,0.00043835,30]
[331555475,1720498244051,-500.0,0.00043835,2]
[331555476,1720498244061,-500.0,0.00043835,30]
[331555477,1720498244070,-1451.15,0.00043835,30]
[331555478,1720498244079,-1246.22,0.00043835,30]
[331555479,1720498244088,-500.0,0.00043835,30]
[331555480,1720498244097,-500.0,0.00043835,30]
[331555481,1720498244107,-500.0,0.00043835,30]
[331555482,1720498244116,-500.0,0.00043835,30]
[331555483,1720498244125,-521.38,0.00043835,30]
[331555484,1720498244135,-500.0,0.00043835,30]
[331555485,1720498244144,-4764.46,0.00043835,30]
[331555486,1720498244153,-500.0,0.00043835,30]
[331555487,1720498244162,-500.0,0.00043835,30]
[331555488,1720498244172,-927.65,0.00043835,30]
[331555489,1720498244181,-1474.57,0.00043835,30]
[331555490,1720498244191,-511.12533111,0.00043835,30]
[331555491,1720498244199,-500.0,0.00043835,2]
[331555492,1720498244209,-7917.1,0.00043835,2]
[331555493,1720498244218,-500.0,0.00043835,30]
[331555494,1720498244227,-168.75400819,0.00043835,30]
[331555495,1720498244236,-7027.52,0.00043835,7]
[331555496,1720498244245,-845.83,0.00043835,30]
[331555497,1720498244254,-868.46,0.00043835,30]
[331555498,1720498244263,-500.0,0.00043835,30]
[331555499,1720498244272,-157.07037494,0.00043835,30]
[331555500,1720498244283,-767.55,0.00043835,30]
[331555501,1720498244292,-3535.96,0.00043835,30]
[331555502,1720498244301,-3535.96,0.00043835,30]
[331555503,1720498244353,-3535.96,0.00043835,30]
[331555504,1720498244365,-3535.96,0.00043835,30]
[331555505,1720498244375,-3535.96,0.00043835,30]
[331555506,1720498244384,-3535.96,0.00043835,30]
[331555507,1720498244393,-3535.96,0.00043835,30]
[331555508,1720498244403,-569.56,0.00043835,30]
[331555510,1720498244413,-3535.96,0.00043835,30]
[331555511,1720498244425,-3535.96,0.00043835,30]
[331555513,1720498244434,-3535.96,0.00043835,30]
[331555515,1720498244443,-3535.96,0.00043835,30]
[331555516,1720498244453,-6012.72,0.00043835,30]
[331555517,1720498244463,-3535.96,0.00043835,30]
[331555518,1720498244472,-3535.96,0.00043835,30]
[331555519,1720498244481,-3535.96,0.00043835,30]
[331555520,1720498244492,-3535.96,0.00043835,30]
[331555521,1720498244501,-3535.96,0.00043835,30]
[331555522,1720498244510,-3535.96,0.00043835,30]
[331555523,1720498244519,-3535.96,0.00043835,30]
[331555524,1720498244528,-3535.96,0.00043835,30]
[331555525,1720498244537,-3535.96,0.00043835,30]
[331555526,1720498244546,-3535.96,0.00043835,30]
[331555527,1720498244555,-3535.96,0.00043835,30]
[331555528,1720498244565,-3535.96,0.00043835,30]
[331555529,1720498244574,-3536.00869698,0.00043835,30]
[331555530,1720498244583,-632.14,0.00043835,30]
[331555531,1720498244592,-500.0,0.00043835,30]
[331555532,1720498244601,-500.0,0.00043835,2]
[331555533,1720498244610,-500.0,0.00043835,30]
[331555534,1720498244619,-1760.15,0.00043835,30]
[331555535,1720498244628,-500.0,0.00043835,30]
[331555536,1720498244637,-500.0,0.00043835,30]
[331555537,1720498244646,-500.00844187,0.00043835,30]
[331555538,1720498244656,-1361.3,0.00043835,30]
[331555539,1720498244665,-439.73264637,0.00043835,30]
[331555540,1720498244673,-500.0,0.00043835,30]
[331555541,1720498244682,-511.45215564,0.00043835,30]
[331555542,1720498244691,-500.0,0.00043835,30]
[331555543,1720498244701,-523.82503412,0.00043835,30]
[331555544,1720498244710,-13593.75,0.00043835,30]
[331555545,1720498244719,-500.0,0.00043835,30]
[331555546,1720498244728,-500.0,0.00043835,30]
[331555547,1720498244738,-529.37409628,0.00043835,30]
[331555548,1720498244748,-517.55908918,0.00043835,30]
[331555549,1720498244757,-500.0,0.00043835,30]
[331555550,1720498244766,-981.59,0.00043835,30]
[331555551,1720498244776,-500.0,0.00043835,30]
[331555552,1720498244786,-500.0,0.00043835,30]
[331555553,1720498244795,-500.0,0.00043835,30]
[331555554,1720498244804,-514.57809215,0.00043835,30]
[331555555,1720498244813,-500.0,0.00043835,30]
[331555556,1720498244823,-539.11,0.00043835,30]
[331555557,1720498244832,-1095.58,0.00043835,30]
[331555558,1720498244842,-500.0,0.00043835,30]
[331555559,1720498244851,-610.08858066,0.00043835,30]
[331555560,1720498244860,-500.0,0.00043835,30]
[331555561,1720498244869,-1806.19,0.00043835,30]
[331555562,1720498244878,-1806.19,0.00043835,30]
[331555563,1720498244888,-1806.19,0.00043835,30]
[331555564,1720498244897,-1806.19,0.00043835,30]
[331555565,1720498244906,-1806.19,0.00043835,30]
[331555566,1720498244915,-1806.19,0.00043835,30]
[331555567,1720498244924,-1806.19,0.00043835,30]
[331555568,1720498244933,-1806.19,0.00043835,30]
[331555569,1720498244942,-409.63895255,0.00043835,30]
[331555570,1720498244952,-1806.19,0.00043835,30]
[331555571,1720498244961,-1806.19,0.00043835,30]
[331555572,1720498244970,-1806.19,0.00043835,30]
[331555573,1720498244979,-1499.1,0.00043835,30]
[331555574,1720498244988,-1806.19,0.00043835,30]
[331555575,1720498244997,-1806.19,0.00043835,30]
[331555576,1720498245007,-1806.19,0.00043835,30]
[331555577,1720498245016,-1806.19,0.00043835,30]
[331555578,1720498245025,-1806.19,0.00043835,30]
[331555579,1720498245035,-1806.19,0.00043835,30]
[331555580,1720498245045,-1806.19,0.00043835,30]
[331555581,1720498245054,-1806.19,0.00043835,30]
[331555582,1720498245063,-1806.19,0.00043835,30]
[331555583,1720498245072,-1806.19,0.00043835,30]
[331555584,1720498245081,-504.6,0.00043835,30]
[331555585,1720498245136,-1806.19,0.00043835,30]
[331555586,1720498245145,-1806.19,0.00043835,30]
[331555587,1720498245155,-1806.32129041,0.00043835,30]
[331555588,1720498245164,-500.0,0.00043835,30]
[331555589,1720498245173,-500.0,0.00043835,30]
[331555590,1720498245183,-3355.8,0.00043835,30]
[331555591,1720498245192,-1239.22,0.00043835,30]
[331555592,1720498245201,-500.0,0.00043835,10]
[331555593,1720498245211,-500.0,0.00043835,30]
[331555594,1720498245220,-772.73,0.00043835,30]
[331555595,1720498245229,-591.74,0.00043835,30]
[331555596,1720498245238,-500.0,0.00043835,30]
[331555597,1720498245248,-2470.91,0.00043835,30]
[331555598,1720498245257,-500.0,0.00043835,30]
[331555599,1720498245266,-500.0,0.00043835,30]
[331555600,1720498245275,-772.61,0.00043835,30]
[331555601,1720498245286,-547.38,0.00043835,30]
[331555602,1720498245295,-269.14699275,0.00043835,30]
[331555603,1720498245304,-649.37387061,0.00043835,30]
[331555604,1720498245313,-2559.58,0.00043835,30]
[331555605,1720498245323,-1002.19,0.00043835,30]
[331555606,1720498245332,-530.25930053,0.00043835,30]
[331555607,1720498245341,-500.0,0.00043835,30]
[331555608,1720498245351,-500.0,0.00043835,30]
[331555609,1720498245360,-240.9378055,0.00043835,21]
[331555610,1720498245370,-500.0,0.00043835,30]
[331555611,1720498245379,-512.99101417,0.00043835,30]
[331555612,1720498245389,-512.19586387,0.00043835,30]
[331555613,1720498245398,-1186.7,0.00043835,30]
[331555614,1720498245408,-428.44547169,0.00043835,30]
[331555615,1720498245420,-500.0,0.00043835,30]
[331555616,1720498245430,-500.0,0.00043835,30]
[331555617,1720498245439,-632.49,0.00043835,30]
[331555618,1720498245448,-763.47,0.00043835,30]
[331555619,1720498245459,-935.5,0.00043835,30]
[331555620,1720498245468,-500.0,0.00043835,2]
[331555621,1720498245478,-518.22,0.00043835,30]
[331555622,1720498245501,-153.81778037,0.00043835,30]
[331555623,1720498245517,-656.71,0.00043835,30]
[331555624,1720498245536,-521.41046739,0.00043835,30]
[331555625,1720498245557,-617.73,0.00043835,30]
[331555626,1720498245577,-500.0,0.00043835,30]
[331555627,1720498245594,-520.89545066,0.00043835,30]
[331555628,1720498245614,-500.0,0.00043835,30]
[331555629,1720498245629,-500.0,0.00043835,120]
[331555630,1720498245648,-151.0,0.00043835,14]
[331555631,1720498245667,-500.0,0.00043835,120]
[331555632,1720498245685,-500.0,0.00043835,30]
[331555633,1720498245697,-500.0,0.00043835,30]
[331555634,1720498245715,-151.0,0.00043835,14]
[331555635,1720498245730,-151.0,0.00043835,14]
[331555636,1720498245746,-151.0,0.00043835,14]
[331555637,1720498245759,-168.040691,0.00043835,14]
[331555638,1720498245774,-151.0,0.00043835,14]
[331555639,1720498245789,-151.0,0.00043835,14]
[331555640,1720498245803,-151.0,0.00043835,14]
[331555641,1720498245818,-151.0,0.00043835,14]
[331555642,1720498245832,-500.0,0.00043835,30]
[331555643,1720498245846,-500.0,0.00043835,20]
[331555644,1720498245861,-151.0,0.00043835,14]
[331555645,1720498245876,-151.0,0.00043835,14]
[331555646,1720498245890,-1000.0,0.00043835,120]
[331555647,1720498245905,-272.107494,0.00043835,14]
[331555648,1720498245920,-272.107494,0.00043835,14]
[331555649,1720498245934,-162.9872,0.00043835,14]
[331555650,1720498245949,-151.0,0.00043835,14]
[331555651,1720498245964,-352.456612,0.00043835,14]
[331555652,1720498245977,-352.456612,0.00043835,14]
[331555653,1720498245992,-1000.0,0.00043835,30]
[331555654,1720498246006,-151.0,0.00043835,14]
[331555655,1720498246020,-151.0,0.00043835,14]
[331555656,1720498246035,-1105.67078322,0.00043835,30]
[331555661,1720498246252,-394.32921678,0.00043835,30]
[331555662,1720498246262,-200.0,0.00043835,7]
[331555663,1720498246271,-152.713107,0.00043835,14]
[331555664,1720498246280,-151.0,0.00043835,14]
[331555665,1720498246289,-151.0,0.00043835,14]
[331555666,1720498246298,-9999.0,0.00043835,14]
[331555667,1720498246307,-255.8283298,0.00043835,30]
[331555668,1720498246318,-151.0,0.00043835,14]
[331555670,1720498246327,-597.139721,0.00043835,2]
[331555672,1720498246336,-597.139721,0.00043835,2]
[331555674,1720498246347,-151.0,0.00043835,14]
[331555676,1720498246356,-597.139721,0.00043835,2]
[331555678,1720498246365,-597.139721,0.00043835,2]
[331555680,1720498246374,-151.0,0.00043835,14]
[331555682,1720498246383,-151.0,0.00043835,14]
[331555684,1720498246391,-151.0,0.00043835,14]
[331555686,1720498246401,-290.926158,0.00043835,14]
[331555688,1720498246411,-500.0,0.00044,120]
[331555690,1720498246427,-500.0,0.00044109,30]
[331555692,1720498246436,-500.0,0.00044109,30]
[331555693,1720498246446,-500.0,0.00044109,30]
[331555695,1720498246456,-500.0,0.00044109,30]
[331555698,1720498246467,-446.5106674,0.00044109,30]
[331555700,1720498246476,-500.0,0.00044109,30]
[331555701,1720498246485,-500.0,0.00044109,30]
[331555704,1720498246496,-500.0,0.00044109,30]
[331555707,1720498246505,-500.0,0.00044109,2]
[331555710,1720498246515,-1154.73,0.00044109,30]
[331555712,1720498246524,-522.909612,0.00044109,30]
[331555713,1720498246535,-500.0,0.00044109,30]
[331555714,1720498246545,-500.0,0.00044109,30]
[331555716,1720498246554,-500.0,0.00044109,30]
[331555717,1720498246563,-500.0,0.00044109,30]
[331555718,1720498246572,-500.0,0.00044109,30]
[331555719,1720498246582,-500.0,0.00044109,30]
[331555720,1720498246592,-500.0,0.00044109,30]
[331555721,1720498246602,-500.0,0.00044109,30]
[331555722,1720498246611,-500.0,0.00044109,30]
[331555723,1720498246621,-500.0,0.00044109,30]
[331555724,1720498246630,-625.0,0.00044109,30]
[331555725,1720498246639,-500.0,0.00044109,30]
[331555726,1720498246648,-539.33,0.00044109,30]
[331555727,1720498246658,-500.0,0.00044109,30]
[331555728,1720498246667,-500.0,0.00044109,30]
[331555729,1720498246677,-500.0,0.00044109,30]
[331555730,1720498246686,-500.0,0.00044109,30]
[331555731,1720498246695,-500.0,0.00044109,30]
[331555732,1720498246704,-500.0,0.00044109,30]
[331555733,1720498246714,-500.0,0.00044109,30]
[331555735,1720498246723,-500.0,0.00044109,30]
[331555736,1720498246733,-500.0,0.00044109,30]
[331555737,1720498246743,-500.0,0.00044109,30]
[331555738,1720498246752,-503.36582819,0.00044109,30]
[331555739,1720498246761,-500.0,0.00044109,30]
[331555740,1720498246770,-500.0,0.00044109,30]
[331555742,1720498246781,-427.02967847,0.00044109,30]
[331555743,1720498246790,-500.15808754,0.00044109,30]
[331555744,1720498246799,-500.0,0.00044109,30]
[331555745,1720498246808,-500.0,0.00044109,30]
[331555746,1720498246817,-500.0,0.00044109,30]
[331555747,1720498246826,-1265.75,0.00044109,30]
[331555748,1720498246835,-500.0,0.00044109,30]
[331555750,1720498246844,-500.0,0.00044109,30]
[331555751,1720498246854,-500.0,0.00044109,30]
[331555752,1720498246863,-500.0,0.00044109,30]
[331555753,1720498246873,-500.0,0.00044109,30]
[331555754,1720498246882,-1693.93,0.00044109,30]
[331555755,1720498246891,-507.8588349,0.00044109,30]
[331555756,1720498246900,-500.0,0.00044109,30]
[331555757,1720498246910,-500.0,0.00044109,30]
[331555758,1720498246919,-500.0,0.00044109,30]
[331555759,1720498246928,-500.0,0.00044109,30]
[331555760,1720498246937,-500.0,0.00044109,30]
[331555761,1720498246946,-158.99191387,0.00044109,30]
[331555762,1720498246955,-500.0,0.00044109,3]
[331555763,1720498246965,-946.46,0.00044109,30]
[331555764,1720498246974,-500.45698141,0.00044109,30]
[331555765,1720498246984,-500.0,0.00044109,30]
[331555766,1720498246993,-500.0,0.00044109,30]
[331555767,1720498247003,-500.0,0.00044109,30]
[331555769,1720498247071,-220.26816034,0.00044109,30]
[331555771,1720498247081,-623.63089027,0.00044109,30]
[331555773,1720498247090,-624.04,0.00044109,30]
[331555774,1720498247099,-500.0,0.00044109,30]
[331555775,1720498247108,-1245.22,0.00044109,30]
[331555776,1720498247117,-500.0,0.00044109,30]
[331555777,1720498247126,-500.0,0.00044109,30]
[331555778,1720498247135,-500.0,0.00044109,30]
[331555779,1720498247144,-500.0,0.00044109,30]
[331555780,1720498247154,-500.0,0.00044109,30]
[331555781,1720498247163,-500.0,0.00044109,30]
[331555782,1720498247172,-500.0,0.00044109,30]
[331555783,1720498247181,-500.0,0.00044109,30]
[331555784,1720498247190,-500.0,0.00044109,7]
[331555785,1720498247201,-500.0,0.00044109,30]
[331555786,1720498247210,-500.0,0.00044109,30]
[331555787,1720498247219,-500.0,0.00044109,30]
[331555788,1720498247229,-1119.25,0.00044109,30]
[331555789,1720498247239,-500.0,0.00044109,30]
[331555790,1720498247248,-500.0,0.00044109,30]
[331555791,1720498247258,-1245.56,0.00044109,30]
[331555792,1720498247268,-500.0,0.00044109,2]
[331555793,1720498247277,-422.70782102,0.00044109,30]
[331555794,1720498247292,-1451.15,0.00044109,30]
[331555795,1720498247301,-1246.22,0.00044109,30]
[331555796,1720498247310,-500.0,0.00044109,30]
[331555797,1720498247319,-509.91935547,0.00044109,30]
[331555798,1720498247329,-500.0,0.00044109,30]
[331555799,1720498247339,-500.0,0.00044109,30]
[331555800,1720498247348,-521.38,0.00044109,30]
[331555801,1720498247358,-500.0,0.00044109,30]
[331555802,1720498247367,-4764.46,0.00044109,30]
[331555803,1720498247376,-500.0,0.00044109,30]
[331555804,1720498247385,-397.86881578,0.00044109,30]
[331555805,1720498247395,-927.65,0.00044109,30]
[331555806,1720498247404,-1474.57,0.00044109,30]
[331555807,1720498247418,-500.0,0.00044109,2]
[331555808,1720498247427,-7917.1,0.00044109,2]
[331555809,1720498247436,-500.0,0.00044109,30]
[331555810,1720498247445,-845.83,0.00044109,30]
[331555811,1720498247455,-6003.36742637,0.00044109,7]
[331555812,1720498247469,-1024.15257363,0.00044109,7]
[331555813,1720498247478,-868.46,0.00044109,30]
[331555814,1720498247489,-500.0,0.00044109,30]
[331555815,1720498247498,-767.55,0.00044109,30]
[331555816,1720498247507,-569.56,0.00044109,30]
[331555817,1720498247516,-6012.72,0.00044109,30]
[331555818,1720498247525,-632.14,0.00044109,30]
[331555819,1720498247537,-500.0,0.00044109,30]
[331555820,1720498247546,-500.0,0.00044109,2]
[331555821,1720498247555,-500.0,0.00044109,30]
[331555822,1720498247564,-1760.15,0.00044109,30]
[331555823,1720498247574,-500.0,0.00044109,30]
[331555824,1720498247583,-500.0,0.00044109,30]
[331555825,1720498247592,-1361.3,0.00044109,30]
[331555826,1720498247601,-609.26179529,0.00044109,30]
[331555827,1720498247610,-500.0,0.00044109,30]
[331555828,1720498247620,-2901.62592708,0.00044109,30]
[331555829,1720498247668,-3135.08848822,0.00016154,2]
[331555830,1720498247678,-157.26558842,0.00027999,2]
[331555831,1720498247686,-14306.82,0.00035616,3]
[331555832,1720498247696,-156.976629,0.00043834,14]
[331555833,1720498247706,-10692.12407292,0.00044109,30]
[331555834,1720498247716,-500.0,0.00044109,30]
[331555835,1720498247725,-500.0,0.00044109,30]
[331555836,1720498247735,-500.0,0.00044109,30]
[331555837,1720498247745,-981.59,0.00044109,30]
[331555838,1720498247754,-500.0,0.00044109,30]
[331555839,1720498247763,-261.01158712,0.00044109,30]
[331555840,1720498247772,-500.0,0.00044109,30]
[331555841,1720498247782,-500.0,0.00044109,30]
[331555842,1720498247792,-539.11,0.00044109,30]
[331555843,1720498247801,-1095.58,0.00044109,30]
[331555844,1720498247810,-500.0,0.00044109,30]
[331555845,1720498247819,-500.0,0.00044109,30]
[331555846,1720498247829,-1499.1,0.00044109,30]
[331555847,1720498247838,-504.6,0.00044109,30]
[331555848,1720498247847,-500.0,0.00044109,30]
[331555849,1720498247856,-500.0,0.00044109,30]
[331555850,1720498247866,-3355.8,0.00044109,30]
[331555851,1720498247875,-1239.22,0.00044109,30]
[331555852,1720498247883,-500.0,0.00044109,10]
[331555853,1720498247892,-500.0,0.00044109,30]
[331555854,1720498247902,-772.73,0.00044109,30]
[331555855,1720498247911,-591.74,0.00044109,30]
[331555856,1720498247920,-500.0,0.00044109,30]
[331555857,1720498247929,-2470.91,0.00044109,30]
[331555858,1720498247938,-500.0,0.00044109,30]
[331555859,1720498247947,-500.0,0.00044109,30]
[331555860,1720498247957,-772.61,0.00044109,30]
[331555861,1720498247967,-547.38,0.00044109,30]
[331555862,1720498247976,-2559.58,0.00044109,30]
[331555863,1720498248034,-1002.19,0.00044109,30]
[331555864,1720498248047,-500.0,0.00044109,30]
[331555865,1720498248057,-500.0,0.00044109,30]
[331555866,1720498248066,-500.0,0.00044109,30]
[331555867,1720498248076,-1186.7,0.00044109,30]
[331555868,1720498248085,-553.38416895,0.00044109,30]
[331555869,1720498248095,-500.0,0.00044109,30]
[331555870,1720498248105,-632.49,0.00044109,30]
[331555871,1720498248114,-763.47,0.00044109,30]
[331555872,1720498248123,-935.5,0.00044109,30]
[331555873,1720498248133,-500.0,0.00044109,2]
[331555874,1720498248142,-518.22,0.00044109,30]
[331555875,1720498248151,-656.71,0.00044109,30]
[331555876,1720498248161,-617.73,0.00044109,30]
[331555877,1720498248170,-500.0,0.00044109,30]
[331555878,1720498248180,-500.0,0.00044109,30]
[331555879,1720498248190,-500.0,0.00044109,120]
[331555880,1720498248200,-500.0,0.00044109,120]
[331555881,1720498248210,-500.0,0.00044109,30]
[331555882,1720498248219,-500.0,0.00044109,30]
[331555883,1720498248230,-151.0,0.00044109,14]
[331555884,1720498248240,-500.0,0.00044109,30]
[331555885,1720498248250,-512.20783172,0.00044109,20]
[331555886,1720498248261,-1000.0,0.00044109,120]
[331555887,1720498248271,-1000.0,0.00044109,30]
[331555888,1720498248282,-1500.0,0.00044109,30]
[331555889,1720498248292,-200.0,0.00044109,7]
[331555890,1720498248301,-9999.0,0.00044109,14]
[331555891,1720498248310,-153.0,0.00044333,2]
[331555892,1720498248319,-153.0,0.00044333,2]
[331555893,1720498248329,-153.0,0.00044333,2]
[331555894,1720498248340,-501.88270315,0.00044383,30]
[331555895,1720498248351,-500.0,0.00044383,30]
[331555896,1720498248361,-500.0,0.00044383,30]
[331555897,1720498248371,-500.0,0.00044383,30]
[331555898,1720498248382,-500.0,0.00044383,30]
[331555899,1720498248393,-500.0,0.00044383,30]
[331555900,1720498248403,-500.0,0.00044383,30]
[331555901,1720498248415,-500.0,0.00044383,2]
[331555902,1720498248426,-1154.73,0.00044383,30]
[331555903,1720498248438,-500.0,0.00044383,30]
[331555904,1720498248447,-496.76672363,0.00044383,30]
[331555905,1720498248458,-330.7084771,0.00044383,30]
[331555906,1720498248467,-500.0,0.00044383,30]
[331555907,1720498248476,-500.0,0.00044383,30]
[331555908,1720498248485,-500.0,0.00044383,30]
[331555909,1720498248497,-500.0,0.00044383,30]
[331555910,1720498248509,-500.0,0.00044383,30]
[331555911,1720498248518,-500.0,0.00044383,30]
[331555912,1720498248527,-500.0,0.00044383,30]
[331555913,1720498248538,-625.0,0.00044383,30]
[331555914,1720498248546,-602.41763087,0.00044383,30]
[331555915,1720498248556,-539.33,0.00044383,30]
[331555916,1720498248565,-500.0,0.00044383,30]
[331555917,1720498248574,-500.0,0.00044383,30]
[331555918,1720498248585,-500.0,0.00044383,30]
[331555919,1720498248595,-500.0,0.00044383,30]
[331555920,1720498248605,-500.0,0.00044383,30]
[331555921,1720498248614,-500.0,0.00044383,30]
[331555922,1720498248623,-500.0,0.00044383,30]
[331555923,1720498248632,-500.0,0.00044383,30]
[331555924,1720498248642,-500.0,0.00044383,30]
[331555925,1720498248651,-500.0,0.00044383,30]
[331555926,1720498248660,-500.0,0.00044383,30]
[331555927,1720498248669,-500.0,0.00044383,30]
[331555928,1720498248678,-500.0,0.00044383,30]
[331555929,1720498248687,-500.0,0.00044383,30]
[331555930,1720498248697,-500.0,0.00044383,30]
[331555931,1720498248706,-1265.75,0.00044383,30]
[331555932,1720498248715,-500.0,0.00044383,30]
[331555933,1720498248724,-199.95379352,0.00044383,30]
[331555934,1720498248734,-500.0,0.00044383,30]
[331555935,1720498248743,-500.0,0.00044383,30]
[331555936,1720498248752,-500.0,0.00044383,30]
[331555937,1720498248762,-1693.93,0.00044383,30]
[331555938,1720498248771,-500.0,0.00044383,30]
[331555939,1720498248789,-500.0,0.00044383,30]
[331555940,1720498248802,-534.72579459,0.00044383,30]
[331555941,1720498248812,-500.0,0.00044383,30]
[331555942,1720498248823,-500.0,0.00044383,30]
[331555943,1720498248833,-502.83847128,0.00044383,3]
[331555944,1720498248842,-946.46,0.00044383,30]
[331555945,1720498248852,-500.0,0.00044383,30]
[331555946,1720498248862,-500.0,0.00044383,30]
[331555947,1720498248872,-500.0,0.00044383,30]
[331555948,1720498248882,-624.04,0.00044383,30]
[331555949,1720498248892,-500.0,0.00044383,30]
[331555950,1720498248902,-1245.22,0.00044383,30]
[331555951,1720498248911,-500.0,0.00044383,30]
[331555952,1720498248920,-500.0,0.00044383,30]